[Event "Early-Titled-Tuesday-Blitz-December-26-2023"]
[Site "Chess.com"]
[Date "2023.12.26"]
[Round "7"]
[White "nitpicker"]
[Black "dodoucb"]
[Result "0-1"]
[WhiteElo "2304"]
[BlackElo "2495"]
[TimeControl "180+1"]
[EndTime "9:17:38 PST"]
[Termination "dodoucb won on time"]

1. d4 {[%clk 0:03:00.9]} 1... Nf6 {[%clk 0:02:59.7]} 2. c4 {[%clk 0:03:00.8]}
2... e6 {[%clk 0:02:59.9]} 3. g3 {[%clk 0:03:00]} 3... Bb4+ {[%clk 0:03:00.1]}
4. Bd2 {[%clk 0:02:59.5]} 4... Qe7 {[%clk 0:03:00.5]} 5. Bg2 {[%clk 0:02:58.4]}
5... O-O {[%clk 0:03:00.3]} 6. Nf3 {[%clk 0:02:58.4]} 6... c5 {[%clk 0:02:59.6]}
7. O-O {[%clk 0:02:42]} 7... cxd4 {[%clk 0:02:52.1]} 8. Nxd4 {[%clk 0:02:37.5]}
8... Nc6 {[%clk 0:02:51.8]} 9. Nb5 {[%clk 0:02:32.1]} 9... a6 {[%clk 0:02:46.8]}
10. N5c3 {[%clk 0:02:29.9]} 10... b6 {[%clk 0:02:20.7]} 11. a3 {[%clk
0:02:26.8]} 11... Bd6 {[%clk 0:02:19.7]} 12. Bg5 {[%clk 0:02:21.1]} 12... Be5
{[%clk 0:02:14.8]} 13. Qd3 {[%clk 0:01:44.3]} 13... Bb7 {[%clk 0:01:56]} 14. b4
{[%clk 0:01:36.6]} 14... h6 {[%clk 0:01:44]} 15. Be3 {[%clk 0:01:32.3]} 15... d5
{[%clk 0:01:26.5]} 16. Bxb6 {[%clk 0:01:24.5]} 16... dxc4 {[%clk 0:01:25.7]} 17.
Qxc4 {[%clk 0:01:20.6]} 17... Rac8 {[%clk 0:01:25.2]} 18. Bc5 {[%clk 0:01:11.4]}
18... Bd6 {[%clk 0:01:22.7]} 19. Nd2 {[%clk 0:01:08.2]} 19... Ne5 {[%clk
0:01:16.2]} 20. Qd4 {[%clk 0:01:00.8]} 20... Bxc5 {[%clk 0:01:02.4]} 21. bxc5
{[%clk 0:01:00.5]} 21... Bxg2 {[%clk 0:01:00.6]} 22. Kxg2 {[%clk 0:01:00.8]}
22... Rxc5 {[%clk 0:00:55.3]} 23. Nce4 {[%clk 0:00:50.2]} 23... Rd5 {[%clk
0:00:53.2]} 24. Qc3 {[%clk 0:00:44.1]} 24... Rfd8 {[%clk 0:00:41.6]} 25. Rfc1
{[%clk 0:00:40.5]} 25... Nfg4 {[%clk 0:00:29.1]} 26. h3 {[%clk 0:00:35.5]} 26...
Nf6 {[%clk 0:00:28.8]} 27. Nxf6+ {[%clk 0:00:28.9]} 27... Qxf6 {[%clk
0:00:28.9]} 28. Nf3 {[%clk 0:00:28.8]} 28... Qf5 {[%clk 0:00:24.7]} 29. Nxe5
{[%clk 0:00:25.1]} 29... Rxe5 {[%clk 0:00:25.6]} 30. Qf3 {[%clk 0:00:15.7]}
30... Rd2 {[%clk 0:00:24.7]} 31. Rc8+ {[%clk 0:00:10.5]} 31... Kh7 {[%clk
0:00:24.4]} 32. Qxf5+ {[%clk 0:00:08.6]} 32... exf5 {[%clk 0:00:25.3]} 33. Re1
{[%clk 0:00:03]} 33... Ra2 {[%clk 0:00:23.7]} 34. Rc3 {[%clk 0:00:01.5]} 34...
a5 {[%clk 0:00:19]} 35. e3 {[%clk 0:00:01.9]} 35... Kg6 {[%clk 0:00:18.4]} 36.
Rd3 {[%clk 0:00:01.9]} 36... f6 {[%clk 0:00:18.2]} 37. Red1 {[%clk 0:00:02.1]}
37... Re4 {[%clk 0:00:17]} 38. Rc1 {[%clk 0:00:01.7]} 38... a4 {[%clk
0:00:15.7]} 39. Rcc3 {[%clk 0:00:01.6]} 39... Rb2 {[%clk 0:00:15.5]} 40. Kf3
{[%clk 0:00:01.8]} 40... h5 {[%clk 0:00:14.7]} 41. h4 {[%clk 0:00:01.4]} 41...
Re5 {[%clk 0:00:11.5]} 42. Kg2 {[%clk 0:00:01.6]} 42... Reb5 {[%clk 0:00:11.8]}
43. Kf3 {[%clk 0:00:01.5]} 43... R5b3 {[%clk 0:00:12.3]} 0-1

[Event "Early-Titled-Tuesday-Blitz-December-26-2023"]
[Site "Chess.com"]
[Date "2023.12.26"]
[Round "7"]
[White "MikeSailer"]
[Black "Viktor_Poddubnyi"]
[Result "0-1"]
[WhiteElo "2186"]
[BlackElo "2371"]
[TimeControl "180+1"]
[EndTime "9:17:38 PST"]
[Termination "Viktor_Poddubnyi won by resignation"]

1. d4 {[%clk 0:03:00.4]} 1... g6 {[%clk 0:02:58.9]} 2. Bf4 {[%clk 0:02:58.7]}
2... Bg7 {[%clk 0:02:59.3]} 3. e3 {[%clk 0:02:56.9]} 3... d6 {[%clk 0:02:59.2]}
4. Nf3 {[%clk 0:02:56.7]} 4... Nf6 {[%clk 0:02:59.3]} 5. Be2 {[%clk 0:02:57.5]}
5... O-O {[%clk 0:02:59.4]} 6. O-O {[%clk 0:02:58.3]} 6... Nc6 {[%clk
0:02:59.8]} 7. h3 {[%clk 0:02:58.9]} 7... Nd7 {[%clk 0:03:00.1]} 8. Bh2 {[%clk
0:02:58.7]} 8... e5 {[%clk 0:03:00.1]} 9. c4 {[%clk 0:02:59.5]} 9... exd4 {[%clk
0:02:55.8]} 10. exd4 {[%clk 0:02:59.7]} 10... h6 {[%clk 0:02:45.2]} 11. Nc3
{[%clk 0:02:59.7]} 11... g5 {[%clk 0:02:40.8]} 12. a3 {[%clk 0:02:56.5]} 12...
f5 {[%clk 0:02:36]} 13. b4 {[%clk 0:02:53.6]} 13... g4 {[%clk 0:02:25.5]} 14.
hxg4 {[%clk 0:02:53.3]} 14... fxg4 {[%clk 0:02:26.4]} 15. Ne1 {[%clk 0:02:26.9]}
15... Bxd4 {[%clk 0:02:18.9]} 16. Nd5 {[%clk 0:02:18.6]} 16... Bxa1 {[%clk
0:01:47.3]} 17. Qxa1 {[%clk 0:02:18]} 17... Nce5 {[%clk 0:01:43.4]} 18. Nd3
{[%clk 0:02:08]} 18... c6 {[%clk 0:01:30.7]} 19. Ne3 {[%clk 0:02:06.1]} 19...
Nxd3 {[%clk 0:01:20.7]} 20. Bxd3 {[%clk 0:02:05.8]} 20... Ne5 {[%clk 0:01:17.4]}
21. Bb1 {[%clk 0:01:35.8]} 21... Qf6 {[%clk 0:01:15.1]} 22. Qa2 {[%clk
0:01:30.1]} 22... Be6 {[%clk 0:01:08.3]} 23. Qc2 {[%clk 0:01:29]} 23... Rf7
{[%clk 0:00:55.2]} 24. Bxe5 {[%clk 0:00:58.6]} 24... dxe5 {[%clk 0:00:45.9]} 25.
g3 {[%clk 0:00:47.2]} 25... Raf8 {[%clk 0:00:43.7]} 26. c5 {[%clk 0:00:36.4]}
26... h5 {[%clk 0:00:38.6]} 27. Ng2 {[%clk 0:00:35.5]} 27... Bd5 {[%clk
0:00:29.8]} 28. Nh4 {[%clk 0:00:35.4]} 28... e4 {[%clk 0:00:25.1]} 29. Ba2
{[%clk 0:00:23.2]} 29... e3 {[%clk 0:00:19.5]} 30. Bxd5 {[%clk 0:00:21.7]} 30...
cxd5 {[%clk 0:00:19.6]} 31. f4 {[%clk 0:00:20]} 31... gxf3 {[%clk 0:00:18.8]}
32. Rxf3 {[%clk 0:00:20.3]} 32... Qa1+ {[%clk 0:00:19.1]} 33. Kg2 {[%clk
0:00:19.1]} 33... Rxf3 {[%clk 0:00:18.9]} 34. Nxf3 {[%clk 0:00:19.1]} 34... Qf6
{[%clk 0:00:16.1]} 35. Qe2 {[%clk 0:00:17.4]} 35... d4 {[%clk 0:00:13.8]} 36.
Qc4+ {[%clk 0:00:16]} 36... Kg7 {[%clk 0:00:13.3]} 37. Nxd4 {[%clk 0:00:15.9]}
37... Qf2+ {[%clk 0:00:12.4]} 38. Kh3 {[%clk 0:00:15.5]} 38... Qf1+ {[%clk
0:00:11.7]} 39. Kh4 {[%clk 0:00:15.2]} 39... Qxc4 {[%clk 0:00:11.5]} 0-1

[Event "Early-Titled-Tuesday-Blitz-December-26-2023"]
[Site "Chess.com"]
[Date "2023.12.26"]
[Round "7"]
[White "UnTucopalaTimba"]
[Black "Klavdia_Nik"]
[Result "1-0"]
[WhiteElo "2164"]
[BlackElo "1969"]
[TimeControl "180+1"]
[EndTime "9:17:39 PST"]
[Termination "UnTucopalaTimba won on time"]

1. e4 {[%clk 0:03:00.2]} 1... c5 {[%clk 0:02:57.5]} 2. Nf3 {[%clk 0:02:59.5]}
2... d6 {[%clk 0:02:56.2]} 3. Bb5+ {[%clk 0:02:58.3]} 3... Nc6 {[%clk
0:02:54.5]} 4. d4 {[%clk 0:02:57.1]} 4... cxd4 {[%clk 0:02:52.2]} 5. Nxd4 {[%clk
0:02:53]} 5... Bd7 {[%clk 0:02:53.1]} 6. O-O {[%clk 0:02:49.6]} 6... Nf6 {[%clk
0:02:48.1]} 7. Nc3 {[%clk 0:02:47.2]} 7... a6 {[%clk 0:02:46]} 8. Ba4 {[%clk
0:02:44.5]} 8... e6 {[%clk 0:02:41.2]} 9. Bg5 {[%clk 0:02:37.9]} 9... Be7 {[%clk
0:02:40.6]} 10. Re1 {[%clk 0:02:30.2]} 10... Qc7 {[%clk 0:02:37.5]} 11. Bb3
{[%clk 0:02:26.4]} 11... O-O {[%clk 0:02:34.4]} 12. Qd2 {[%clk 0:02:04.6]} 12...
b5 {[%clk 0:02:27.4]} 13. a3 {[%clk 0:02:02.8]} 13... Ne5 {[%clk 0:02:26.1]} 14.
Nf3 {[%clk 0:01:54.1]} 14... Nc4 {[%clk 0:02:14.2]} 15. Bxc4 {[%clk 0:01:53.5]}
15... bxc4 {[%clk 0:02:11.9]} 16. Qe2 {[%clk 0:01:46.1]} 16... Rab8 {[%clk
0:02:09]} 17. Rab1 {[%clk 0:01:44]} 17... h6 {[%clk 0:02:07.7]} 18. Bh4 {[%clk
0:01:43.4]} 18... Rfe8 {[%clk 0:01:58.7]} 19. e5 {[%clk 0:01:41.6]} 19... dxe5
{[%clk 0:01:31.6]} 20. Nxe5 {[%clk 0:01:39.7]} 20... Bb5 {[%clk 0:00:51.8]} 21.
a4 {[%clk 0:01:35.1]} 21... Bd7 {[%clk 0:00:45.7]} 22. Qxc4 {[%clk 0:01:23.7]}
22... Qxc4 {[%clk 0:00:44.6]} 23. Nxc4 {[%clk 0:01:23.3]} 23... g5 {[%clk
0:00:40.8]} 24. Bg3 {[%clk 0:01:22]} 24... Rb4 {[%clk 0:00:39.5]} 25. b3 {[%clk
0:01:11.2]} 25... Nh5 {[%clk 0:00:27.8]} 26. Bd6 {[%clk 0:01:03.7]} 26... Bxd6
{[%clk 0:00:26.1]} 27. Nxd6 {[%clk 0:01:03.4]} 27... Reb8 {[%clk 0:00:25.6]} 28.
Rbd1 {[%clk 0:00:55.2]} 28... Bc6 {[%clk 0:00:24.1]} 29. g3 {[%clk 0:00:49.6]}
29... Nf6 {[%clk 0:00:21.2]} 30. Nc4 {[%clk 0:00:45.1]} 30... Nd5 {[%clk
0:00:18]} 31. Nxd5 {[%clk 0:00:44.2]} 31... Bxd5 {[%clk 0:00:18.9]} 32. Ne3
{[%clk 0:00:42.1]} 32... Bf3 {[%clk 0:00:18.4]} 33. Rd6 {[%clk 0:00:38]} 33...
R4b6 {[%clk 0:00:14.2]} 34. Rxb6 {[%clk 0:00:37]} 34... Rxb6 {[%clk 0:00:15.1]}
35. Kf1 {[%clk 0:00:37.2]} 35... Kf8 {[%clk 0:00:14.1]} 36. h4 {[%clk 0:00:37]}
36... Ke7 {[%clk 0:00:13.2]} 37. Kg1 {[%clk 0:00:33.3]} 37... gxh4 {[%clk
0:00:09.5]} 38. gxh4 {[%clk 0:00:33.2]} 38... Rb4 {[%clk 0:00:09.2]} 39. Nc4
{[%clk 0:00:30.2]} 39... Bd5 {[%clk 0:00:07.7]} 40. Ne3 {[%clk 0:00:24.8]} 40...
Bf3 {[%clk 0:00:03.5]} 41. Kh2 {[%clk 0:00:20.7]} 41... Rxh4+ {[%clk 0:00:03.3]}
42. Kg3 {[%clk 0:00:20.5]} 1-0

[Event "Early-Titled-Tuesday-Blitz-December-26-2023"]
[Site "Chess.com"]
[Date "2023.12.26"]
[Round "7"]
[White "MIss_MIaMI"]
[Black "chessdiamant"]
[Result "0-1"]
[WhiteElo "2429"]
[BlackElo "2572"]
[TimeControl "180+1"]
[EndTime "9:17:51 PST"]
[Termination "chessdiamant won on time"]

1. e4 {[%clk 0:02:57.1]} 1... d5 {[%clk 0:02:59.9]} 2. exd5 {[%clk 0:02:57.3]}
2... Nf6 {[%clk 0:02:59.3]} 3. Nc3 {[%clk 0:02:57.9]} 3... Nxd5 {[%clk
0:02:58.6]} 4. Bc4 {[%clk 0:02:58.6]} 4... Nxc3 {[%clk 0:02:58.8]} 5. Qf3 {[%clk
0:02:55.6]} 5... e6 {[%clk 0:02:58.8]} 6. dxc3 {[%clk 0:02:53.5]} 6... Be7
{[%clk 0:02:57.2]} 7. Bf4 {[%clk 0:02:50.8]} 7... O-O {[%clk 0:02:54]} 8. Rd1
{[%clk 0:02:45.5]} 8... Nd7 {[%clk 0:02:51.6]} 9. h4 {[%clk 0:02:26.2]} 9... c6
{[%clk 0:02:45.7]} 10. h5 {[%clk 0:02:21.8]} 10... Qa5 {[%clk 0:02:45.4]} 11. h6
{[%clk 0:02:18.2]} 11... g6 {[%clk 0:02:44.3]} 12. Ne2 {[%clk 0:02:10.6]} 12...
Ne5 {[%clk 0:02:39.2]} 13. Qe4 {[%clk 0:02:02]} 13... Nxc4 {[%clk 0:02:34.6]}
14. Qxc4 {[%clk 0:02:02.9]} 14... e5 {[%clk 0:02:33.9]} 15. Bg3 {[%clk
0:01:51.3]} 15... Be6 {[%clk 0:02:31.3]} 16. Qe4 {[%clk 0:01:49.4]} 16... Bf6
{[%clk 0:02:17.8]} 17. O-O {[%clk 0:01:20.6]} 17... Rfe8 {[%clk 0:02:11]} 18. a3
{[%clk 0:01:14.4]} 18... Bf5 {[%clk 0:02:08.5]} 19. Qf3 {[%clk 0:01:13]} 19...
Bg5 {[%clk 0:02:02.9]} 20. c4 {[%clk 0:00:55.5]} 20... Bxh6 {[%clk 0:01:57.8]}
21. Qb3 {[%clk 0:00:52.3]} 21... Qb6 {[%clk 0:01:54.5]} 22. Qa4 {[%clk 0:00:46]}
22... Bg7 {[%clk 0:01:35]} 23. Nc3 {[%clk 0:00:43.5]} 23... Qxb2 {[%clk
0:01:31.8]} 24. Qb3 {[%clk 0:00:33.5]} 24... Qxc2 {[%clk 0:01:28.9]} 25. Qxc2
{[%clk 0:00:32.6]} 25... Bxc2 {[%clk 0:01:29.8]} 26. Rd7 {[%clk 0:00:33.2]}
26... b6 {[%clk 0:01:22.6]} 27. Re1 {[%clk 0:00:32]} 27... Bf5 {[%clk
0:01:18.3]} 28. Rd6 {[%clk 0:00:26.1]} 28... Rac8 {[%clk 0:01:17.8]} 29. a4
{[%clk 0:00:24.8]} 29... Be6 {[%clk 0:01:16.2]} 30. c5 {[%clk 0:00:16.5]} 30...
bxc5 {[%clk 0:01:12.2]} 31. Ne4 {[%clk 0:00:14.7]} 31... Bd5 {[%clk 0:01:10.8]}
32. Rd7 {[%clk 0:00:10.2]} 32... Bxe4 {[%clk 0:01:05.2]} 33. Rxe4 {[%clk
0:00:11.1]} 33... a5 {[%clk 0:00:54.4]} 34. Rc4 {[%clk 0:00:11.3]} 34... Bf8
{[%clk 0:00:53.9]} 35. f3 {[%clk 0:00:11.7]} 35... Red8 {[%clk 0:00:51.9]} 36.
Ra7 {[%clk 0:00:12.1]} 36... Rd4 {[%clk 0:00:48.2]} 37. Rc2 {[%clk 0:00:08.8]}
37... Rxa4 {[%clk 0:00:47.5]} 38. Bxe5 {[%clk 0:00:09.5]} 38... c4 {[%clk
0:00:47.6]} 39. Bc3 {[%clk 0:00:09.1]} 39... Bc5+ {[%clk 0:00:47.3]} 40. Kh2
{[%clk 0:00:08.1]} 40... Bxa7 {[%clk 0:00:47.9]} 41. Bf6 {[%clk 0:00:07.6]}
41... Bb8+ {[%clk 0:00:46.3]} 42. Kh3 {[%clk 0:00:07.5]} 42... Bd6 {[%clk
0:00:46.3]} 43. Rd2 {[%clk 0:00:06.6]} 43... Bf8 {[%clk 0:00:46.4]} 44. Rc2
{[%clk 0:00:05.5]} 44... Rb4 {[%clk 0:00:44.6]} 45. Bc3 {[%clk 0:00:05]} 45...
Rb3 {[%clk 0:00:45]} 46. Bxa5 {[%clk 0:00:05.3]} 46... Rb5 {[%clk 0:00:43.7]}
47. Bc3 {[%clk 0:00:05.7]} 47... Rh5+ {[%clk 0:00:43.7]} 48. Kg4 {[%clk
0:00:05.8]} 48... Rd5 {[%clk 0:00:43.8]} 49. Bf6 {[%clk 0:00:05.8]} 49... Bg7
{[%clk 0:00:43.7]} 50. Be7 {[%clk 0:00:06.5]} 50... c3 {[%clk 0:00:43.3]} 51.
Bb4 {[%clk 0:00:06.9]} 51... Rd2 {[%clk 0:00:42.8]} 52. Rc1 {[%clk 0:00:07.6]}
52... Rd3 {[%clk 0:00:41.5]} 53. g3 {[%clk 0:00:06.2]} 53... c5 {[%clk
0:00:41.7]} 54. Ba5 {[%clk 0:00:06]} 54... Ra8 {[%clk 0:00:41.1]} 55. Bb6 {[%clk
0:00:06.7]} 55... c4 {[%clk 0:00:39.2]} 56. f4 {[%clk 0:00:05.3]} 56... Rd2
{[%clk 0:00:39.3]} 57. Kf3 {[%clk 0:00:03.6]} 57... c2 {[%clk 0:00:39.3]} 58.
Bc7 {[%clk 0:00:03.4]} 58... Bb2 {[%clk 0:00:38.1]} 0-1

[Event "Early-Titled-Tuesday-Blitz-December-26-2023"]
[Site "Chess.com"]
[Date "2023.12.26"]
[Round "7"]
[White "BashirliSaadat"]
[Black "Yeritsyaan"]
[Result "0-1"]
[WhiteElo "2432"]
[BlackElo "2629"]
[TimeControl "180+1"]
[EndTime "9:17:52 PST"]
[Termination "Yeritsyaan won by resignation"]

1. e4 {[%clk 0:03:00.9]} 1... g6 {[%clk 0:02:53.1]} 2. d4 {[%clk 0:02:59.7]}
2... Bg7 {[%clk 0:02:53.8]} 3. Nc3 {[%clk 0:02:57.7]} 3... c6 {[%clk 0:02:54.4]}
4. Be2 {[%clk 0:02:57.4]} 4... d5 {[%clk 0:02:55]} 5. e5 {[%clk 0:02:57.1]} 5...
h5 {[%clk 0:02:55.1]} 6. f4 {[%clk 0:02:56]} 6... Nh6 {[%clk 0:02:55.3]} 7. h3
{[%clk 0:02:53.5]} 7... a6 {[%clk 0:02:54.2]} 8. Nf3 {[%clk 0:02:53.5]} 8... Nf5
{[%clk 0:02:51.6]} 9. Kf2 {[%clk 0:02:52]} 9... h4 {[%clk 0:02:51.8]} 10. Ng5
{[%clk 0:02:45.4]} 10... Ng3 {[%clk 0:02:51]} 11. Re1 {[%clk 0:02:45.1]} 11...
f6 {[%clk 0:02:51.4]} 12. exf6 {[%clk 0:02:44.1]} 12... exf6 {[%clk 0:02:44.5]}
13. Bh5+ {[%clk 0:02:34.4]} 13... Kf8 {[%clk 0:02:44.7]} 14. Bxg6 {[%clk
0:02:29.2]} 14... fxg5 {[%clk 0:02:42.4]} 15. Re8+ {[%clk 0:02:29.7]} 15... Qxe8
{[%clk 0:02:43.1]} 16. Bxe8 {[%clk 0:02:30.4]} 16... Kxe8 {[%clk 0:02:44]} 17.
Qe1+ {[%clk 0:02:23.4]} 17... Kf7 {[%clk 0:02:39.8]} 18. fxg5 {[%clk 0:02:10.6]}
18... Bxd4+ {[%clk 0:02:39.5]} 19. Kf3 {[%clk 0:02:10.9]} 19... Bf5 {[%clk
0:02:35.1]} 20. Bf4 {[%clk 0:02:07.4]} 20... Re8 {[%clk 0:02:27.6]} 21. Qd2
{[%clk 0:01:57.7]} 21... Be5 {[%clk 0:02:08.4]} 22. Bxe5 {[%clk 0:01:51.2]}
22... Rxe5 {[%clk 0:02:09.3]} 23. Re1 {[%clk 0:01:47]} 23... Nd7 {[%clk
0:02:08.6]} 24. Rxe5 {[%clk 0:01:42.7]} 24... Nxe5+ {[%clk 0:02:09.5]} 25. Kf2
{[%clk 0:01:43.1]} 25... Re8 {[%clk 0:01:54.4]} 26. Qf4 {[%clk 0:01:41.2]} 26...
Ng6 {[%clk 0:01:51.8]} 27. Qb4 {[%clk 0:01:14.9]} 27... b5 {[%clk 0:01:46.5]}
28. Qd6 {[%clk 0:01:10.7]} 28... Re2+ {[%clk 0:01:45.3]} 29. Kf3 {[%clk
0:00:26.9]} 29... Re6 {[%clk 0:00:51]} 30. Qd7+ {[%clk 0:00:18.1]} 30... Ne7
{[%clk 0:00:49.8]} 31. Qd8 {[%clk 0:00:06.6]} 31... Bxc2 {[%clk 0:00:45.4]} 32.
Qh8 {[%clk 0:00:05.2]} 32... Bg6 {[%clk 0:00:40.9]} 33. Qxh4 {[%clk 0:00:05]}
33... Nef5 {[%clk 0:00:39.3]} 34. Qb4 {[%clk 0:00:03.2]} 34... Ne4 {[%clk
0:00:28.4]} 35. Nxe4 {[%clk 0:00:02.7]} 35... dxe4+ {[%clk 0:00:29.3]} 36. Ke2
{[%clk 0:00:02.4]} 36... e3 {[%clk 0:00:29.6]} 37. Qf4 {[%clk 0:00:01.8]} 37...
Kg7 {[%clk 0:00:23.2]} 38. h4 {[%clk 0:00:02.3]} 38... Bh5+ {[%clk 0:00:22.4]}
39. Ke1 {[%clk 0:00:01.3]} 39... Bg6 {[%clk 0:00:19.7]} 40. Qc7+ {[%clk
0:00:01.7]} 40... Ne7 {[%clk 0:00:18.9]} 41. Qf4 {[%clk 0:00:02]} 41... Nd5
{[%clk 0:00:18.5]} 42. Qd4+ {[%clk 0:00:02.2]} 42... Kf7 {[%clk 0:00:18.5]} 43.
h5 {[%clk 0:00:02.6]} 43... Bxh5 {[%clk 0:00:18.2]} 44. g4 {[%clk 0:00:03.1]}
44... Bg6 {[%clk 0:00:18.6]} 45. Qa7+ {[%clk 0:00:03.5]} 45... Re7 {[%clk
0:00:18.5]} 46. Qd4 {[%clk 0:00:04.1]} 46... Re4 {[%clk 0:00:18]} 47. Qf6+
{[%clk 0:00:04.2]} 47... Nxf6 {[%clk 0:00:18]} 48. gxf6 {[%clk 0:00:04.7]} 48...
Kxf6 {[%clk 0:00:18.9]} 0-1

[Event "Early-Titled-Tuesday-Blitz-December-26-2023"]
[Site "Chess.com"]
[Date "2023.12.26"]
[Round "7"]
[White "ProfessorChess101"]
[Black "Kirill_Klukin"]
[Result "0-1"]
[WhiteElo "2600"]
[BlackElo "2823"]
[TimeControl "180+1"]
[EndTime "9:17:54 PST"]
[Termination "Kirill_Klukin won on time"]

1. d4 {[%clk 0:03:00.9]} 1... f5 {[%clk 0:02:57.4]} 2. Bg5 {[%clk 0:02:55.7]}
2... g6 {[%clk 0:02:57.2]} 3. Nc3 {[%clk 0:02:55.4]} 3... Bg7 {[%clk 0:02:57.4]}
4. e4 {[%clk 0:02:54.5]} 4... fxe4 {[%clk 0:02:48.6]} 5. Nxe4 {[%clk 0:02:53.9]}
5... Nf6 {[%clk 0:02:49.2]} 6. Nxf6+ {[%clk 0:02:40.4]} 6... exf6 {[%clk
0:02:49.1]} 7. Qe2+ {[%clk 0:02:38]} 7... Qe7 {[%clk 0:02:49.4]} 8. Qxe7+ {[%clk
0:02:31.9]} 8... Kxe7 {[%clk 0:02:50.3]} 9. Be3 {[%clk 0:02:32.2]} 9... b6
{[%clk 0:02:43]} 10. O-O-O {[%clk 0:02:29.9]} 10... Bb7 {[%clk 0:02:43]} 11. h4
{[%clk 0:02:29.8]} 11... h5 {[%clk 0:02:21.4]} 12. Nh3 {[%clk 0:02:27.7]} 12...
Kf7 {[%clk 0:01:45.7]} 13. Nf4 {[%clk 0:02:26.1]} 13... Bh6 {[%clk 0:01:45.1]}
14. Rh3 {[%clk 0:02:17.9]} 14... Nc6 {[%clk 0:01:30.2]} 15. Bc4+ {[%clk
0:01:52.1]} 15... Kg7 {[%clk 0:01:25.9]} 16. Rg3 {[%clk 0:01:52]} 16... Bxf4
{[%clk 0:01:24.8]} 17. Bxf4 {[%clk 0:01:52.9]} 17... Ne7 {[%clk 0:01:23.8]} 18.
Bd3 {[%clk 0:01:42.6]} 18... d6 {[%clk 0:01:07]} 19. Re1 {[%clk 0:01:27]} 19...
Rae8 {[%clk 0:01:03.6]} 20. Rge3 {[%clk 0:01:13.8]} 20... Kf7 {[%clk 0:00:59.7]}
21. Bc4+ {[%clk 0:01:11.8]} 21... Nd5 {[%clk 0:00:59.6]} 22. Bg3 {[%clk
0:00:55.5]} 22... Rxe3 {[%clk 0:00:39.2]} 23. Rxe3 {[%clk 0:00:56.4]} 23... Re8
{[%clk 0:00:38.1]} 24. Rxe8 {[%clk 0:00:51.7]} 24... Kxe8 {[%clk 0:00:38]} 25.
Kd2 {[%clk 0:00:43.7]} 25... Ne7 {[%clk 0:00:37.9]} 26. f3 {[%clk 0:00:41.6]}
26... Bd5 {[%clk 0:00:37.8]} 27. Bb5+ {[%clk 0:00:34.8]} 27... Kf7 {[%clk
0:00:35.9]} 28. a4 {[%clk 0:00:32.3]} 28... Bc6 {[%clk 0:00:18]} 29. Bc4+ {[%clk
0:00:29.9]} 29... Bd5 {[%clk 0:00:18.3]} 30. Bd3 {[%clk 0:00:29.3]} 30... Be6
{[%clk 0:00:16.2]} 31. Bf2 {[%clk 0:00:27.1]} 31... Bf5 {[%clk 0:00:15.6]} 32.
Be2 {[%clk 0:00:27.7]} 32... Bd7 {[%clk 0:00:13]} 33. b3 {[%clk 0:00:25.4]}
33... a5 {[%clk 0:00:12.9]} 34. c4 {[%clk 0:00:23.2]} 34... c5 {[%clk
0:00:13.2]} 35. g4 {[%clk 0:00:17.3]} 35... Nc6 {[%clk 0:00:07.8]} 36. Kc3
{[%clk 0:00:11]} 36... Ke7 {[%clk 0:00:05.4]} 37. Bd3 {[%clk 0:00:09.6]} 37...
Be8 {[%clk 0:00:05.1]} 38. Be4 {[%clk 0:00:09.1]} 38... Nd8 {[%clk 0:00:03.5]}
39. Bd5 {[%clk 0:00:08.6]} 39... Ne6 {[%clk 0:00:03]} 40. Bxe6 {[%clk
0:00:04.3]} 40... Kxe6 {[%clk 0:00:03.4]} 41. Kd3 {[%clk 0:00:04.4]} 41... Bd7
{[%clk 0:00:03.4]} 42. Ke4 {[%clk 0:00:03.6]} 42... Kf7 {[%clk 0:00:03.3]} 43.
Kd5 {[%clk 0:00:03]} 43... Ke7 {[%clk 0:00:03.2]} 44. gxh5 {[%clk 0:00:01.7]}
44... gxh5 {[%clk 0:00:03.5]} 45. Ke4 {[%clk 0:00:02.4]} 45... cxd4 {[%clk
0:00:03.2]} 0-1